[Event "Panevezys ELITE Open 2021"]
[Site "Panevezys, Lithuania"]
[Date "2021.07.30"]
[Round "1.1"]
[White "Meshkovs, Nikita"]
[Black "Carlsson, Ludvig"]
[Result "1-0"]
[WhiteElo "2568"]
[BlackElo "2258"]
[PlyCount "127"]
[EventDate "2021.??.??"]
[TimeControl "90/40+30:0"]
[WhiteClock "0:05:27"]
[BlackClock "0:39:20"]

1. Nf3 {[%emt 0:00:02]} d5 {[%emt 0:00:17]} 2. g3 {[%emt 0:00:09]} g6 {[%emt 0:
00:17]} 3. Bg2 {[%emt 0:00:25]} Bg7 {[%emt 0:00:07]} 4. d4 {[%emt 0:00:05]} c6
{[%emt 0:00:07]} 5. O-O {[%emt 0:00:18]} Nf6 {[%emt 0:00:15]} 6. b3 {[%emt 0:
02:05]} O-O {[%emt 0:00:19]} 7. c4 {[%emt 0:00:49]} dxc4 {[%emt 0:00:28]} 8.
bxc4 {[%emt 0:00:07]} c5 {[%emt 0:00:03]} 9. Bb2 {[%emt 0:00:07]} cxd4 {[%emt
0:00:08]} 10. Nxd4 {[%emt 0:00:08]} Qb6 {[%emt 0:00:06]} 11. Qc1 {[%emt 0:00:
23]} Bd7 {[%emt 0:00:33]} 12. Nd2 {[%emt 0:12:37]} Nc6 {[%emt 0:01:53]} 13. c5
{[%emt 0:05:22]} Nxd4 {[%emt 0:11:35]} 14. Bxd4 {[%emt 0:00:28]} Qa6 {[%emt 0:
00:05]} 15. Qb2 {[%emt 0:15:51]} Bc6 {[%emt 0:00:17]} 16. Nf3 {[%emt 0:00:26]}
Rfd8 {[%emt 0:12:03]} 17. Rfc1 {[%emt 0:03:03]} Rac8 {[%emt 0:04:38]} 18. Bh3 {
[%emt 0:03:40]} Bd7 {[%emt 0:03:46]} 19. Bf1 {[%emt 0:02:07]} Qb5 {[%emt 0:00:
41]} 20. Qb3 {[%emt 0:08:49]} Qxb3 {[%emt 0:04:11]} 21. axb3 {[%emt 0:00:02]}
a6 {[%emt 0:00:08]} 22. e3 {[%emt 0:06:00]} Nd5 {[%emt 0:04:08]} 23. Bg2 {
[%emt 0:07:03]} Bc6 {[%emt 0:01:54]} 24. Bxg7 {[%emt 0:02:57]} Kxg7 {[%emt 0:
00:07]} 25. Ne5 {[%emt 0:00:05]} Nb4 {[%emt 0:00:37]} 26. Nxc6 {[%emt 0:00:46]}
Nxc6 {[%emt 0:00:15]} 27. Rd1 {[%emt 0:11:07]} Rc7 {[%emt 0:05:13]} 28. Rxd8 {
[%emt 0:03:53]} Nxd8 {[%emt 0:00:05]} 29. b4 {[%emt 0:00:05]} Nc6 {[%emt 0:03:
42]} 30. Ra4 {[%emt 0:01:39]} Ne5 {[%emt 0:10:38]} 31. Kf1 {[%emt 0:04:13]} e6
{[%emt 0:04:47]} 32. Ke2 {[%emt 0:01:27]} Kf6 {[%emt 0:00:44]} 33. f4 {[%emt 0:
00:50]} Nc6 {[%emt 0:00:06]} 34. Kd3 {[%emt 0:00:54]} Na7 {[%emt 0:00:08]} 35.
Ra1 {[%emt 0:02:53]} Ke7 {[%emt 0:01:18]} 36. Kc4 {[%emt 0:01:40]} Rd7 {[%emt
0:00:06]} 37. Bf3 {[%emt 0:00:37]} Kd8 {[%emt 0:01:13]} 38. Ra2 {[%emt 0:01:46]
} h5 {[%emt 0:00:56]} 39. h3 {[%emt 0:00:23]} Kc7 {[%emt 0:01:33]} 40. g4 {
[%emt 0:00:41]} hxg4 {[%emt 0:00:14]} 41. hxg4 {[%emt 0:00:02]} Rd8 {[%emt 0:
07:18]} 42. Rh2 {[%emt 0:02:47]} Rd7 {[%emt 0:01:29]} 43. g5 {[%emt 0:02:32]}
Nc6 {[%emt 0:04:08]} 44. Rh7 {[%emt 0:01:52]} Nd8 {[%emt 0:01:35]} 45. Be4 {
[%emt 0:07:35]} Kc8 {[%emt 0:04:16]} 46. Rh8 {[%emt 0:04:43]} Kc7 {[%emt 0:01:
41]} 47. Re8 {[%emt 0:01:10]} Kc8 {[%emt 0:01:28]} 48. Bc2 {[%emt 0:06:59]} Kc7
{[%emt 0:00:12]} 49. Ba4 {[%emt 0:02:17]} Nc6 {[%emt 0:00:07]} 50. Rf8 {[%emt
0:00:13]} b5+ {[%emt 0:03:04]} 51. cxb6+ {[%emt 0:00:06]} Kxb6 {[%emt 0:00:04]}
52. Rc8 {[%emt 0:00:10]} Rc7 {[%emt 0:00:09]} 53. Rxc7 {[%emt 0:00:46]} Kxc7 {
[%emt 0:00:06]} 54. Kc5 {[%emt 0:02:33]} Nd8 {[%emt 0:03:32]} 55. e4 {[%emt 0:
00:27]} Nb7+ {[%emt 0:00:44]} 56. Kd4 {[%emt 0:00:01]} a5 {[%emt 0:00:45]} 57.
bxa5 {[%emt 0:00:54]} Nxa5 {[%emt 0:00:06]} 58. Ke5 {[%emt 0:01:21]} Nb7 {
[%emt 0:00:21]} 59. Kf6 {[%emt 0:00:29]} Nc5 {[%emt 0:01:01]} 60. Bc2 {[%emt 0:
03:05]} e5 {[%emt 0:00:07]} 61. fxe5 {[%emt 0:00:37]} Nd7+ {[%emt 0:00:31]} 62.
Kxf7 {[%emt 0:00:03]} Nxe5+ {[%emt 0:00:07]} 63. Kf6 {[%emt 0:00:18]} Kd6 {
[%emt 0:00:07]} 64. Bb1 {[%emt 0:00:03]} 1-0

[Event "Panevezys ELITE Open 2021"]
[Site "Panevezys, Lithuania"]
[Date "2021.07.30"]
[Round "1.2"]
[White "Steponavicius, Stasys"]
[Black "Sulskis, Sarunas"]
[Result "0-1"]
[WhiteElo "2209"]
[BlackElo "2523"]
[PlyCount "60"]
[EventDate "2021.??.??"]
[TimeControl "90/40+30:0"]
[WhiteClock "0:22:34"]
[BlackClock "0:09:33"]

1. d4 {[%emt 0:00:03]} e6 {[%emt 0:00:21]} 2. c4 {[%emt 0:00:07]} b6 {[%emt 0:
01:25]} 3. Nc3 {[%emt 0:00:11]} Bb7 {[%emt 0:06:04]} 4. Nf3 {[%emt 0:00:14]} f5
{[%emt 0:01:50]} 5. g3 {[%emt 0:01:32]} Nf6 {[%emt 0:00:31]} 6. Bg2 {[%emt 0:
00:09]} Bb4 {[%emt 0:00:37]} 7. O-O {[%emt 0:01:10]} O-O {[%emt 0:00:21]} 8.
Qc2 {[%emt 0:04:16]} Nc6 {[%emt 0:17:39]} 9. Bg5 {[%emt 0:06:59]} Bxc3 {[%emt
0:03:34]} 10. Bxf6 {[%emt 0:01:39]} Qxf6 {[%emt 0:01:06]} 11. Qxc3 {[%emt 0:00:
08]} Nd8 {[%emt 0:06:18]} 12. Ne5 {[%emt 0:09:00]} Bxg2 {[%emt 0:02:02]} 13.
Kxg2 {[%emt 0:00:06]} Qe7 {[%emt 0:00:18]} 14. Qf3 {[%emt 0:04:43]} Nf7 {[%emt
0:03:35]} 15. Nxf7 {[%emt 0:08:45]} Qxf7 {[%emt 0:00:27]} 16. Rae1 {[%emt 0:03:
03]} d6 {[%emt 0:18:53]} 17. e4 {[%emt 0:03:56]} f4 {[%emt 0:02:01]} 18. e5 {
[%emt 0:04:33]} Rad8 {[%emt 0:00:23]} 19. exd6 {[%emt 0:01:36]} Rxd6 {[%emt 0:
00:19]} 20. Re4 {[%emt 0:01:50]} Qd7 {[%emt 0:05:05]} 21. Rxf4 {[%emt 0:06:36]}
Rxf4 {[%emt 0:00:37]} 22. Qxf4 {[%emt 0:00:10]} Rxd4 {[%emt 0:03:04]} 23. Qf3 {
[%emt 0:00:10]} Rxc4 {[%emt 0:02:05]} 24. Qa8+ {[%emt 0:06:32]} Kf7 {[%emt 0:
00:06]} 25. Qxa7 {[%emt 0:00:26]} Qc6+ {[%emt 0:04:34]} 26. Kh3 {[%emt 0:04:05]
} Rc5 {[%emt 0:07:10]} 27. Qa3 {[%emt 0:08:59]} Rh5+ {[%emt 0:02:35]} 28. Kg4 {
[%emt 0:00:07]} Qe4+ {[%emt 0:00:48]} 29. f4 {[%emt 0:01:29]} Rxh2 {[%emt 0:01:
50]} 30. Qc3 {[%emt 0:02:17]} h5+ {[%emt 0:00:15]} 0-1

[Event "Panevezys ELITE Open 2021"]
[Site "Panevezys, Lithuania"]
[Date "2021.07.30"]
[Round "1.3"]
[White "Kazakouski, Valery"]
[Black "Salna, Aleksandras"]
[Result "1-0"]
[WhiteElo "2499"]
[BlackElo "2166"]
[PlyCount "46"]
[EventDate "2021.??.??"]
[TimeControl "90/40+30:0"]
[WhiteClock "0:37:23"]
[BlackClock "1:07:24"]

1. Nf3 {[%emt 0:00:03]} d5 {[%emt 0:00:06]} 2. c4 {[%emt 0:00:08]} d4 {[%emt 0:
00:04]} 3. b4 {[%emt 0:01:07]} g5 {[%emt 0:00:05]} 4. Qa4+ {[%emt 0:02:41]} c6
{[%emt 0:00:10]} 5. g3 {[%emt 0:06:31]} g4 {[%emt 0:01:07]} 6. Nh4 {[%emt 0:04:
22]} e5 {[%emt 0:02:41]} 7. h3 {[%emt 0:01:22]} h5 {[%emt 0:03:36]} 8. Ng2 {
[%emt 0:09:39]} h4 {[%emt 0:10:44]} 9. hxg4 {[%emt 0:05:54]} hxg3 {[%emt 0:00:
57]} 10. Rxh8 {[%emt 0:02:10]} Qf6 {[%emt 0:00:05]} 11. Rh1 {[%emt 0:09:23]}
Qxf2+ {[%emt 0:00:08]} 12. Kd1 {[%emt 0:00:06]} Bxg4 {[%emt 0:01:19]} 13. d3 {
[%emt 0:05:21]} Bh3 {[%emt 0:04:09]} 14. Bd2 {[%emt 0:06:02]} Bxg2 {[%emt 0:00:
22]} 15. Be1 {[%emt 0:01:45]} Bxh1 {[%emt 0:01:17]} 16. Bxf2 {[%emt 0:00:12]}
gxf2 {[%emt 0:00:07]} 17. Nd2 {[%emt 0:01:06]} Nf6 {[%emt 0:01:34]} 18. Bh3 {
[%emt 0:00:32]} b5 {[%emt 0:02:41]} 19. Qa5 {[%emt 0:02:49]} c5 {[%emt 0:02:27]
} 20. Kc2 {[%emt 0:01:54]} Nc6 {[%emt 0:00:13]} 21. Qxb5 {[%emt 0:00:12]} Rb8 {
[%emt 0:00:08]} 22. Qa4 {[%emt 0:00:47]} Rxb4 {[%emt 0:00:27]} 23. Qa3 {[%emt
0:00:27]} Bd5 {[%emt 0:00:14]} 1-0

[Event "Panevezys ELITE Open 2021"]
[Site "Panevezys, Lithuania"]
[Date "2021.07.30"]
[Round "1.4"]
[White "Kalvaitis, Sigitas"]
[Black "Juksta, Karolis"]
[Result "1/2-1/2"]
[WhiteElo "2164"]
[BlackElo "2438"]
[PlyCount "49"]
[EventDate "2021.??.??"]
[TimeControl "90/40+30:0"]
[WhiteClock "0:22:52"]
[BlackClock "0:21:53"]

1. e4 {[%emt 0:00:02]} e6 {[%emt 0:00:18]} 2. d4 {[%emt 0:00:05]} d5 {[%emt 0:
00:05]} 3. e5 {[%emt 0:00:06]} c5 {[%emt 0:00:16]} 4. c3 {[%emt 0:00:04]} Nc6 {
[%emt 0:01:25]} 5. Nf3 {[%emt 0:00:32]} Nge7 {[%emt 0:02:10]} 6. Na3 {[%emt 0:
04:28]} Nf5 {[%emt 0:03:16]} 7. Nc2 {[%emt 0:01:58]} cxd4 {[%emt 0:00:16]} 8.
cxd4 {[%emt 0:00:28]} Bd7 {[%emt 0:05:54]} 9. Bd3 {[%emt 0:03:28]} Qb6 {[%emt
0:02:15]} 10. Bxf5 {[%emt 0:06:20]} exf5 {[%emt 0:00:07]} 11. O-O {[%emt 0:00:
26]} h6 {[%emt 0:03:36]} 12. b4 {[%emt 0:07:29]} Be7 {[%emt 0:08:54]} 13. h4 {
[%emt 0:06:00]} O-O {[%emt 0:02:55]} 14. Bf4 {[%emt 0:01:43]} Rfc8 {[%emt 0:14:
42]} 15. a3 {[%emt 0:07:04]} a5 {[%emt 0:03:57]} 16. Rb1 {[%emt 0:06:22]} axb4
{[%emt 0:00:31]} 17. axb4 {[%emt 0:04:47]} Be6 {[%emt 0:02:05]} 18. Qd3 {[%emt
0:08:35]} Qd8 {[%emt 0:09:32]} 19. h5 {[%emt 0:04:35]} Qd7 {[%emt 0:00:31]} 20.
Rb3 {[%emt 0:05:50]} Ra2 {[%emt 0:03:56]} 21. Ne3 {[%emt 0:00:31]} Nxb4 {[%emt
0:04:26]} 22. Qb1 {[%emt 0:00:07]} Qa4 {[%emt 0:04:43]} 23. Nxf5 {[%emt 0:01:
47]} Bxf5 {[%emt 0:04:14]} 24. Qxf5 {[%emt 0:00:25]} Rc6 {[%emt 0:00:30]} 25.
Rfb1 {[%emt 0:06:56]} 1/2-1/2

[Event "Panevezys ELITE Open 2021"]
[Site "Panevezys, Lithuania"]
[Date "2021.07.30"]
[Round "1.5"]
[White "Brazdzionis, Andrius"]
[Black "Stremavicius, Pijus"]
[Result "1/2-1/2"]
[WhiteElo "2321"]
[BlackElo "2146"]
[PlyCount "39"]
[EventDate "2021.??.??"]
[TimeControl "90/40+30:0"]
[WhiteClock "0:51:47"]
[BlackClock "0:59:57"]

1. d4 {[%emt 0:00:15]} Nf6 {[%emt 0:00:08]} 2. c4 {[%emt 0:00:39]} e6 {[%emt 0:
00:06]} 3. Nf3 {[%emt 0:01:30]} b6 {[%emt 0:00:08]} 4. e3 {[%emt 0:00:55]} Bb7
{[%emt 0:00:22]} 5. Bd3 {[%emt 0:00:08]} Be7 {[%emt 0:03:00]} 6. O-O {[%emt 0:
01:51]} O-O {[%emt 0:00:18]} 7. b3 {[%emt 0:00:51]} c5 {[%emt 0:00:45]} 8. Bb2
{[%emt 0:00:27]} cxd4 {[%emt 0:00:20]} 9. exd4 {[%emt 0:00:43]} d5 {[%emt 0:00:
07]} 10. Nbd2 {[%emt 0:00:21]} Nc6 {[%emt 0:00:18]} 11. Rc1 {[%emt 0:07:23]}
Rc8 {[%emt 0:00:49]} 12. Qe2 {[%emt 0:00:20]} Nh5 {[%emt 0:13:25]} 13. Qe3 {
[%emt 0:01:55]} g6 {[%emt 0:00:51]} 14. g4 {[%emt 0:12:07]} Ng7 {[%emt 0:05:22]
} 15. cxd5 {[%emt 0:00:27]} exd5 {[%emt 0:01:20]} 16. Ne5 {[%emt 0:00:49]} Nxe5
{[%emt 0:05:24]} 17. dxe5 {[%emt 0:01:46]} Ne6 {[%emt 0:01:43]} 18. Rxc8 {
[%emt 0:02:40]} Qxc8 {[%emt 0:00:23]} 19. Qg3 {[%emt 0:00:27]} Nc5 {[%emt 0:05:
25]} 20. Be2 {[%emt 0:12:59]} 1/2-1/2

[Event "Panevezys ELITE Open 2021"]
[Site "Panevezys, Lithuania"]
[Date "2021.07.30"]
[Round "1.6"]
[White "Sedykh, Mikhail"]
[Black "Butvilas, Aistis"]
[Result "0-1"]
[WhiteElo "2119"]
[BlackElo "2088"]
[PlyCount "68"]
[EventDate "2021.??.??"]
[TimeControl "90/40+30:0"]
[WhiteClock "0:01:52"]
[BlackClock "0:52:40"]

1. d4 {[%emt 0:00:05]} Nf6 {[%emt 0:00:08]} 2. c4 {[%emt 0:00:07]} e6 {[%emt 0:
00:06]} 3. Nc3 {[%emt 0:00:09]} Bb4 {[%emt 0:00:08]} 4. Qc2 {[%emt 0:00:10]} d5
{[%emt 0:00:38]} 5. cxd5 {[%emt 0:00:36]} Qxd5 {[%emt 0:00:15]} 6. Nf3 {[%emt
0:02:08]} Qf5 {[%emt 0:00:31]} 7. Qxf5 {[%emt 0:00:59]} exf5 {[%emt 0:00:07]}
8. a3 {[%emt 0:01:22]} Ba5 {[%emt 0:01:21]} 9. b4 {[%emt 0:03:36]} Bb6 {[%emt
0:00:11]} 10. Bf4 {[%emt 0:01:20]} Nc6 {[%emt 0:05:59]} 11. Rd1 {[%emt 0:08:57]
} O-O {[%emt 0:01:57]} 12. h4 {[%emt 0:20:06]} Re8 {[%emt 0:04:43]} 13. e3 {
[%emt 0:13:10]} Nh5 {[%emt 0:01:29]} 14. g3 {[%emt 0:00:31]} Nxf4 {[%emt 0:04:
51]} 15. gxf4 {[%emt 0:00:29]} a5 {[%emt 0:05:14]} 16. b5 {[%emt 0:00:37]} Ne7
{[%emt 0:04:27]} 17. Bc4 {[%emt 0:09:41]} c6 {[%emt 0:02:11]} 18. h5 {[%emt 0:
07:16]} Be6 {[%emt 0:03:40]} 19. Ne5 {[%emt 0:06:54]} Bxc4 {[%emt 0:02:13]} 20.
Nxc4 {[%emt 0:00:05]} Bc7 {[%emt 0:00:39]} 21. b6 {[%emt 0:04:40]} Bb8 {[%emt
0:04:28]} 22. Na4 {[%emt 0:02:59]} Nd5 {[%emt 0:01:06]} 23. Kd2 {[%emt 0:00:14]
} Nf6 {[%emt 0:00:50]} 24. f3 {[%emt 0:03:35]} Re7 {[%emt 0:00:52]} 25. h6 {
[%emt 0:02:25]} g6 {[%emt 0:00:20]} 26. Nc5 {[%emt 0:01:25]} Ne8 {[%emt 0:00:
38]} 27. Rhe1 {[%emt 0:04:10]} Nd6 {[%emt 0:00:49]} 28. Ne5 {[%emt 0:02:45]} f6
{[%emt 0:00:36]} 29. Ned7 {[%emt 0:00:06]} Nc4+ {[%emt 0:01:35]} 30. Kc3 {
[%emt 0:03:22]} Nxe3 {[%emt 0:00:34]} 31. Kd3 {[%emt 0:00:50]} Bxf4 {[%emt 0:
00:42]} 32. Nxf6+ {[%emt 0:00:03]} Kf7 {[%emt 0:00:23]} 33. Nfd7 {[%emt 0:00:
38]} Nxd1 {[%emt 0:00:24]} 34. Rxd1 {[%emt 0:00:03]} Rd8 {[%emt 0:00:53]} 0-1

[Event "Panevezys ELITE Open 2021"]
[Site "Panevezys, Lithuania"]
[Date "2021.07.30"]
[Round "1.7"]
[White "Bagvilas, Lukas"]
[Black "Voroblievas, Arturas"]
[Result "1-0"]
[WhiteElo "2000"]
[BlackElo "1699"]
[PlyCount "61"]
[EventDate "2021.??.??"]
[TimeControl "90/40+30:0"]
[WhiteClock "0:57:47"]
[BlackClock "0:18:35"]

1. e4 {[%emt 0:00:03]} e5 {[%emt 0:00:11]} 2. Nc3 {[%emt 0:00:08]} Nf6 {[%emt
0:00:18]} 3. g3 {[%emt 0:00:08]} Bc5 {[%emt 0:00:56]} 4. Bg2 {[%emt 0:00:09]}
d6 {[%emt 0:01:17]} 5. Nge2 {[%emt 0:00:10]} Nc6 {[%emt 0:01:36]} 6. O-O {
[%emt 0:00:09]} a6 {[%emt 0:00:27]} 7. h3 {[%emt 0:00:11]} O-O {[%emt 0:01:00]}
8. d3 {[%emt 0:00:22]} h6 {[%emt 0:19:23]} 9. Kh2 {[%emt 0:00:08]} Ne7 {[%emt
0:00:41]} 10. f4 {[%emt 0:00:37]} exf4 {[%emt 0:00:44]} 11. gxf4 {[%emt 0:02:
02]} Ng6 {[%emt 0:05:34]} 12. Ng3 {[%emt 0:00:50]} Bb6 {[%emt 0:04:46]} 13. Nh5
{[%emt 0:04:07]} c6 {[%emt 0:01:43]} 14. f5 {[%emt 0:10:16]} Nh4 {[%emt 0:04:
35]} 15. Ng3 {[%emt 0:06:27]} Nxg2 {[%emt 0:04:08]} 16. Kxg2 {[%emt 0:00:07]}
Re8 {[%emt 0:02:38]} 17. d4 {[%emt 0:01:58]} Bc7 {[%emt 0:01:00]} 18. b3 {
[%emt 0:04:08]} b5 {[%emt 0:00:31]} 19. Qf3 {[%emt 0:05:26]} b4 {[%emt 0:04:41]
} 20. Nd1 {[%emt 0:00:26]} Qe7 {[%emt 0:04:26]} 21. Nf2 {[%emt 0:00:39]} Bb6 {
[%emt 0:03:13]} 22. Bb2 {[%emt 0:00:45]} Qa7 {[%emt 0:02:40]} 23. Rad1 {[%emt
0:00:35]} Bb7 {[%emt 0:00:29]} 24. Ng4 {[%emt 0:02:58]} Nh7 {[%emt 0:05:07]}
25. f6 {[%emt 0:02:43]} Ng5 {[%emt 0:00:45]} 26. Qf4 {[%emt 0:01:04]} Ne6 {
[%emt 0:03:44]} 27. Nxh6+ {[%emt 0:00:51]} gxh6 {[%emt 0:01:42]} 28. Qxh6 {
[%emt 0:00:06]} d5 {[%emt 0:01:57]} 29. Rf5 {[%emt 0:00:14]} Reb8 {[%emt 0:06:
48]} 30. Rg5+ {[%emt 0:00:11]} Nxg5 {[%emt 0:00:03]} 31. Qg7# {[%emt 0:00:06]}
1-0

[Event "Panevezys ELITE Open 2021"]
[Site "Panevezys, Lithuania"]
[Date "2021.07.30"]
[Round "1.8"]
[White "Michailov, Andrej"]
[Black "Greicius, Pijus"]
[Result "0-1"]
[WhiteElo "1645"]
[BlackElo "1902"]
[PlyCount "58"]
[EventDate "2021.??.??"]
[TimeControl "90/40+30:0"]
[WhiteClock "0:07:36"]
[BlackClock "0:15:46"]

1. c4 {[%emt 0:00:02]} Nf6 {[%emt 0:00:19]} 2. Nc3 {[%emt 0:00:28]} e6 {[%emt
0:01:00]} 3. Nf3 {[%emt 0:03:12]} d5 {[%emt 0:00:29]} 4. d4 {[%emt 0:04:07]}
Bb4 {[%emt 0:00:44]} 5. e3 {[%emt 0:04:11]} O-O {[%emt 0:00:41]} 6. Bd3 {[%emt
0:01:28]} dxc4 {[%emt 0:00:34]} 7. Bxc4 {[%emt 0:00:14]} c5 {[%emt 0:00:29]} 8.
O-O {[%emt 0:01:43]} Nbd7 {[%emt 0:08:32]} 9. Qe2 {[%emt 0:05:55]} a6 {[%emt 0:
14:00]} 10. a3 {[%emt 0:15:59]} Bxc3 {[%emt 0:12:20]} 11. bxc3 {[%emt 0:00:53]}
Qc7 {[%emt 0:05:52]} 12. e4 {[%emt 0:05:11]} cxd4 {[%emt 0:14:01]} 13. cxd4 {
[%emt 0:02:23]} Nxe4 {[%emt 0:00:19]} 14. Bd3 {[%emt 0:14:03]} Nef6 {[%emt 0:
00:25]} 15. Bg5 {[%emt 0:01:39]} h6 {[%emt 0:02:57]} 16. Bd2 {[%emt 0:06:29]}
Rd8 {[%emt 0:09:27]} 17. Rfc1 {[%emt 0:04:01]} Qd6 {[%emt 0:01:29]} 18. Bb4 {
[%emt 0:00:36]} Qd5 {[%emt 0:00:15]} 19. Bc4 {[%emt 0:00:29]} Qh5 {[%emt 0:00:
56]} 20. Bb3 {[%emt 0:07:07]} Re8 {[%emt 0:01:22]} 21. Qb2 {[%emt 0:01:06]} Nd5
{[%emt 0:02:25]} 22. Bd6 {[%emt 0:00:20]} b6 {[%emt 0:02:11]} 23. Re1 {[%emt 0:
03:54]} Bb7 {[%emt 0:01:37]} 24. Rac1 {[%emt 0:00:27]} N7f6 {[%emt 0:01:38]}
25. Re5 {[%emt 0:01:37]} g5 {[%emt 0:00:38]} 26. h3 {[%emt 0:05:04]} Nf4 {
[%emt 0:01:28]} 27. Qd2 {[%emt 0:01:07]} Bxf3 {[%emt 0:02:50]} 28. Qxf4 {[%emt
0:03:29]} gxf4 {[%emt 0:00:13]} 29. Rxh5 {[%emt 0:00:03]} Bxh5 {[%emt 0:00:09]}
0-1

[Event "Panevezys ELITE Open 2021"]
[Site "Panevezys, Lithuania"]
[Date "2021.07.30"]
[Round "1.10"]
[White "Bazevicius, Albertas"]
[Black "Sedykh, Stakhey"]
[Result "0-1"]
[WhiteElo "1867"]
[BlackElo "1418"]
[PlyCount "90"]
[EventDate "2021.??.??"]
[TimeControl "90/40+30:0"]
[WhiteClock "0:11:49"]
[BlackClock "0:53:27"]

1. d4 {[%emt 0:00:00]} d5 {[%emt 0:00:07]} 2. Nf3 {[%emt 0:00:08]} Nf6 {[%emt
0:00:12]} 3. Nc3 {[%emt 0:00:16]} Bf5 {[%emt 0:00:31]} 4. Bf4 {[%emt 0:01:04]}
e6 {[%emt 0:01:02]} 5. e3 {[%emt 0:02:08]} Be7 {[%emt 0:00:20]} 6. Bd3 {[%emt
0:03:31]} Bg6 {[%emt 0:01:34]} 7. Ne5 {[%emt 0:03:10]} Nbd7 {[%emt 0:01:29]} 8.
Nxg6 {[%emt 0:01:31]} hxg6 {[%emt 0:00:13]} 9. Nb5 {[%emt 0:03:19]} O-O {[%emt
0:09:10]} 10. Bxc7 {[%emt 0:01:00]} Qc8 {[%emt 0:00:19]} 11. Bd6 {[%emt 0:02:
03]} Bxd6 {[%emt 0:02:06]} 12. Nxd6 {[%emt 0:00:19]} Qc6 {[%emt 0:01:23]} 13.
Nb5 {[%emt 0:00:18]} a6 {[%emt 0:00:23]} 14. Nc3 {[%emt 0:00:06]} b5 {[%emt 0:
00:50]} 15. a3 {[%emt 0:00:28]} Nb6 {[%emt 0:00:16]} 16. O-O {[%emt 0:00:16]}
Nc4 {[%emt 0:00:20]} 17. Qc1 {[%emt 0:08:34]} Rac8 {[%emt 0:00:41]} 18. Nd1 {
[%emt 0:09:50]} Nd7 {[%emt 0:06:47]} 19. f3 {[%emt 0:05:03]} e5 {[%emt 0:00:39]
} 20. c3 {[%emt 0:06:37]} Rfe8 {[%emt 0:00:52]} 21. b3 {[%emt 0:03:38]} Nd6 {
[%emt 0:01:15]} 22. Qd2 {[%emt 0:01:02]} Re7 {[%emt 0:01:51]} 23. Ra2 {[%emt 0:
01:37]} Rce8 {[%emt 0:02:40]} 24. Qf2 {[%emt 0:01:37]} Nf6 {[%emt 0:01:10]} 25.
Rc2 {[%emt 0:05:54]} e4 {[%emt 0:01:26]} 26. Be2 {[%emt 0:02:08]} Nf5 {[%emt 0:
01:23]} 27. f4 {[%emt 0:01:16]} Nd6 {[%emt 0:00:55]} 28. g4 {[%emt 0:02:27]}
Qc8 {[%emt 0:01:19]} 29. Qh4 {[%emt 0:00:20]} Rc7 {[%emt 0:00:43]} 30. Kh1 {
[%emt 0:00:41]} a5 {[%emt 0:01:29]} 31. Ra2 {[%emt 0:06:05]} b4 {[%emt 0:10:56]
} 32. axb4 {[%emt 0:04:16]} axb4 {[%emt 0:00:05]} 33. cxb4 {[%emt 0:01:09]} Rc2
{[%emt 0:00:11]} 34. Rxc2 {[%emt 0:00:11]} Qxc2 {[%emt 0:00:07]} 35. Qe1 {
[%emt 0:00:33]} Qxb3 {[%emt 0:00:15]} 36. Qc3 {[%emt 0:05:28]} Qa2 {[%emt 0:01:
01]} 37. g5 {[%emt 0:04:00]} Qxe2 {[%emt 0:00:41]} 38. Kg1 {[%emt 0:01:21]} Ng4
{[%emt 0:01:09]} 39. Qb2 {[%emt 0:00:27]} Qxb2 {[%emt 0:00:21]} 40. Nxb2 {
[%emt 0:01:33]} Nxe3 {[%emt 0:00:18]} 41. Rb1 {[%emt 0:00:18]} Nec4 {[%emt 0:
00:41]} 42. Na4 {[%emt 0:00:21]} Nb5 {[%emt 0:01:07]} 43. Nc5 {[%emt 0:00:36]}
e3 {[%emt 0:00:46]} 44. Nd3 {[%emt 0:01:41]} Nxd4 {[%emt 0:00:32]} 45. b5 {
[%emt 0:00:15]} Rb8 {[%emt 0:00:29]} 0-1